fUSD/lending_fUSD_20250211
["ID","MTS","AMOUNT","RATE_DAILY","PERIOD"]
[352698013,1739250643500,-500.0,0.00011087,2]
[352698014,1739250643510,-512.87,0.00011087,2]
[352698015,1739250643519,-500.0,0.00011087,2]
[352698017,1739250643528,-500.0,0.00011087,2]
[352698019,1739250643537,-500.0,0.00011087,2]
[352698021,1739250643546,-500.0,0.00011087,2]
[352698023,1739250643558,-500.0,0.00011087,2]
[352698025,1739250643567,-500.0,0.00011087,2]
[352698027,1739250643576,-500.0,0.00011087,2]
[352698029,1739250643586,-500.0,0.00011087,2]
[352698031,1739250643595,-500.0,0.00011087,2]
[352698032,1739250643604,-500.0,0.00011087,2]
[352698033,1739250643614,-500.0,0.00011087,2]
[352698034,1739250643623,-500.0,0.00011087,2]
[352698035,1739250643632,-500.0,0.00011087,2]
[352698036,1739250643646,-300.0,0.00011087,2]
[352698037,1739250643655,-503.16545297,0.00011087,2]
[352698038,1739250643664,-356.65366265,0.00011087,2]
[352698039,1739250643674,-500.0,0.00011087,2]
[352698040,1739250643683,-534.6903226,0.00011087,2]
[352698041,1739250643692,-506.25433786,0.00011087,2]
[352698042,1739250643702,-500.0,0.00011087,2]
[352698043,1739250643711,-500.0,0.00011087,2]
[352698044,1739250643721,-500.0,0.00011087,2]
[352698045,1739250643732,-500.0,0.00011087,2]
[352698046,1739250643741,-855.55,0.00011087,2]
[352698047,1739250643750,-500.0,0.00011087,2]
[352698048,1739250643759,-500.0,0.00011087,2]
[352698049,1739250643768,-500.0,0.00011087,2]
[352698050,1739250643777,-500.0,0.00011087,2]
[352698051,1739250643787,-500.0,0.00011087,2]
[352698052,1739250643795,-500.0,0.00011087,2]
[352698053,1739250643806,-500.0,0.00011087,2]
[352698054,1739250643815,-500.0,0.00011087,2]
[352698055,1739250643824,-500.0,0.00011087,2]
[352698056,1739250643834,-1085.81,0.00011087,2]
[352698057,1739250643843,-500.0,0.00011087,2]
[352698058,1739250643851,-500.0,0.00011087,2]
[352698059,1739250643860,-1001.71,0.00011087,2]
[352698060,1739250643870,-500.0,0.00011087,2]
[352698061,1739250643880,-556.16371558,0.00011087,2]
[352698062,1739250643889,-500.0,0.00011087,2]
[352698063,1739250643898,-500.0,0.00011087,2]
[352698064,1739250643907,-500.0,0.00011087,2]
[352698065,1739250643915,-1044.12,0.00011087,2]
[352698066,1739250643924,-500.0,0.00011087,2]
[352698067,1739250643933,-500.56644236,0.00011087,2]
[352698068,1739250643943,-503.38419656,0.00011087,2]
[352698069,1739250643951,-500.0,0.00011087,2]
[352698070,1739250643960,-500.0,0.00011087,2]
[352698071,1739250643969,-606.17239037,0.00011087,2]
[352698072,1739250643978,-500.0,0.00011087,2]
[352698073,1739250643989,-500.0,0.00011087,2]
[352698074,1739250643998,-500.0,0.00011087,2]
[352698075,1739250644007,-500.0,0.00011087,2]
[352698076,1739250644016,-500.0,0.00011087,2]
[352698077,1739250644026,-500.0,0.00011087,2]
[352698078,1739250644035,-500.0,0.00011087,2]
[352698079,1739250644045,-500.0,0.00011087,2]
[352698080,1739250644055,-506.65800186,0.00011087,2]
[352698081,1739250644064,-500.0,0.00011087,2]
[352698082,1739250644073,-500.0,0.00011087,2]
[352698083,1739250644082,-500.0,0.00011087,2]
[352698084,1739250644091,-333.43615384,0.00011087,2]
[352698085,1739250644101,-500.0,0.00011087,2]
[352698086,1739250644110,-500.0,0.00011087,2]
[352698087,1739250644119,-500.0,0.00011087,2]
[352698088,1739250644128,-516.57,0.00011087,2]
[352698089,1739250644137,-500.0,0.00011087,2]
[352698090,1739250644146,-1153.71,0.00011087,2]
[352698091,1739250644155,-500.0,0.00011087,2]
[352698092,1739250644164,-497.71336193,0.00011087,2]
[352698093,1739250644173,-500.0,0.00011087,2]
[352698094,1739250644182,-500.0,0.00011087,2]
[352698095,1739250644191,-500.0,0.00011087,2]
[352698096,1739250644200,-491.0,0.00011087,2]
[352698097,1739250644209,-500.0,0.00011087,2]
[352698098,1739250644218,-500.0,0.00011087,2]
[352698099,1739250644227,-500.0,0.00011087,2]
[352698100,1739250644236,-500.0,0.00011087,2]
[352698101,1739250644245,-501.34854279,0.00011087,2]
[352698102,1739250644254,-1127.37,0.00011087,2]
[352698103,1739250644263,-500.0,0.00011087,2]
[352698104,1739250644273,-500.0,0.00011087,2]
[352698105,1739250644282,-500.0,0.00011087,2]
[352698106,1739250644291,-503.97429505,0.00011087,2]
[352698107,1739250644300,-500.0,0.00011087,2]
[352698108,1739250644309,-500.0,0.00011087,2]
[352698109,1739250644320,-500.0,0.00011087,2]
[352698110,1739250644330,-500.0,0.00011087,2]
[352698111,1739250644339,-500.0,0.00011087,2]
[352698112,1739250644348,-500.0,0.00011087,2]
[352698113,1739250644357,-996.99,0.00011087,2]
[352698114,1739250644367,-746.45,0.00011087,2]
[352698115,1739250644376,-500.0,0.00011087,2]
[352698116,1739250644386,-503.04451138,0.00011087,2]
[352698117,1739250644395,-528.55391699,0.00011087,2]
[352698118,1739250644405,-512.78653908,0.00011087,2]
[352698119,1739250644414,-501.48922676,0.00011087,2]
[352698120,1739250644423,-732.69,0.00011087,2]
[352698121,1739250644433,-500.0,0.00011087,2]
[352698122,1739250644442,-500.0,0.00011087,2]
[352698123,1739250644451,-500.0,0.00011087,2]
[352698124,1739250644460,-502.80383403,0.00011087,2]
[352698125,1739250644470,-500.0,0.00011087,2]
[352698126,1739250644479,-500.0,0.00011087,2]
[352698127,1739250644488,-500.0,0.00011087,2]
[352698128,1739250644497,-1355.62,0.00011087,2]
[352698129,1739250644507,-508.59214918,0.00011087,2]
[352698130,1739250644516,-500.0,0.00011087,2]
[352698131,1739250644526,-500.0,0.00011087,2]
[352698132,1739250644535,-1268.76,0.00011087,2]
[352698133,1739250644544,-500.0,0.00011087,2]
[352698134,1739250644555,-502.16527213,0.00011087,2]
[352698135,1739250644563,-500.0,0.00011087,2]
[352698136,1739250644573,-335.58075723,0.00011087,2]
[352698137,1739250644582,-500.0,0.00011087,2]
[352698138,1739250644591,-500.0,0.00011087,2]
[352698139,1739250644601,-500.0,0.00011087,2]
[352698140,1739250644610,-505.36876175,0.00011087,2]
[352698141,1739250644619,-500.0,0.00011087,2]
[352698142,1739250644629,-500.0,0.00011087,2]
[352698143,1739250644638,-500.0,0.00011087,2]
[352698144,1739250644650,-500.0,0.00011087,2]
[352698145,1739250644659,-327.56257731,0.00011087,2]
[352698146,1739250644669,-500.0,0.00011087,2]
[352698147,1739250644678,-503.18298192,0.00011087,2]
[352698148,1739250644689,-821.39,0.00011087,2]
[352698149,1739250644698,-500.0,0.00011087,2]
[352698150,1739250644707,-500.0,0.00011087,2]
[352698151,1739250644716,-500.0,0.00011087,2]
[352698152,1739250644726,-1108.36,0.00011087,2]
[352698153,1739250644735,-500.0,0.00011087,2]
[352698154,1739250644744,-500.0,0.00011087,2]
[352698155,1739250644753,-500.0,0.00011087,2]
[352698156,1739250644762,-500.0,0.00011087,2]
[352698157,1739250644772,-503.39897927,0.00011087,2]
[352698158,1739250644781,-500.0,0.00011087,2]
[352698159,1739250644790,-1046.45,0.00011087,2]
[352698160,1739250644799,-504.40589379,0.00011087,2]
[352698161,1739250644809,-500.0,0.00011087,2]
[352698162,1739250644818,-500.0,0.00011087,2]
[352698163,1739250644827,-500.0,0.00011087,2]
[352698164,1739250644837,-500.0,0.00011087,2]
[352698165,1739250644846,-500.0,0.00011087,2]
[352698166,1739250644855,-500.0,0.00011087,2]
[352698167,1739250644864,-500.0,0.00011087,2]
[352698168,1739250644874,-500.0,0.00011087,2]
[352698169,1739250644883,-500.0,0.00011087,2]
[352698170,1739250644891,-500.0,0.00011087,2]
[352698171,1739250644900,-500.0,0.00011087,2]
[352698172,1739250644909,-500.0,0.00011087,2]
[352698173,1739250644919,-502.63451309,0.00011087,2]
[352698174,1739250644927,-282.97696991,0.00011087,2]
[352698175,1739250644937,-555.11,0.00011087,2]
[352698176,1739250644946,-500.0,0.00011087,2]
[352698177,1739250644955,-508.67113656,0.00011087,2]
[352698178,1739250644964,-500.0,0.00011087,2]
[352698179,1739250644973,-500.0,0.00011087,2]
[352698180,1739250644982,-504.54334439,0.00011087,2]
[352698181,1739250644991,-500.0,0.00011087,2]
[352698182,1739250645000,-2031.53,0.00011087,2]
[352698183,1739250645009,-500.0,0.00011087,2]
[352698184,1739250645196,-500.0,0.00011087,2]
[352698185,1739250645213,-964.59,0.00011087,2]
[352698186,1739250645223,-505.90333943,0.00011087,2]
[352698187,1739250645232,-505.70184442,0.00011087,2]
[352698188,1739250645241,-500.0,0.00011087,2]
[352698189,1739250645250,-1017.86,0.00011087,2]
[352698190,1739250645260,-500.0,0.00011087,2]
[352698191,1739250645270,-502.94640709,0.00011087,2]
[352698192,1739250645279,-504.3322542,0.00011087,2]
[352698193,1739250645289,-500.0,0.00011087,2]
[352698194,1739250645298,-500.0,0.00011087,2]
[352698195,1739250645310,-503.62029764,0.00011087,2]
[352698196,1739250645320,-500.0,0.00011087,2]
[352698197,1739250645330,-500.0,0.00011087,2]
[352698198,1739250645339,-823.15,0.00011087,2]
[352698199,1739250645349,-500.0,0.00011087,2]
[352698200,1739250645359,-500.0,0.00011087,2]
[352698201,1739250645370,-500.0,0.00011087,2]
[352698202,1739250645379,-500.0,0.00011087,2]
[352698203,1739250645389,-1151.89,0.00011087,2]
[352698204,1739250645398,-500.0,0.00011087,2]
[352698205,1739250645408,-502.94886682,0.00011087,2]
[352698206,1739250645417,-500.0,0.00011087,2]
[352698207,1739250645427,-500.0,0.00011087,2]
[352698208,1739250645436,-2205.5,0.00011087,2]
[352698209,1739250645446,-609.11,0.00011087,2]
[352698210,1739250645455,-654.4,0.00011087,2]
[352698211,1739250645465,-500.0,0.00011087,2]
[352698212,1739250645474,-2005.37,0.00011087,2]
[352698213,1739250645484,-500.0,0.00011087,2]
[352698214,1739250645493,-2304.23,0.00011087,2]
[352698215,1739250645503,-505.35498135,0.00011087,2]
[352698216,1739250645513,-500.0,0.00011087,2]
[352698217,1739250645522,-598.6,0.00011087,2]
[352698218,1739250645532,-1463.02,0.00011087,2]
[352698219,1739250645541,-500.0,0.00011087,2]
[352698220,1739250645551,-504.56119182,0.00011087,2]
[352698221,1739250645561,-2363.59,0.00011087,2]
[352698222,1739250645571,-500.0,0.00011087,2]
[352698223,1739250645580,-500.0,0.00011087,2]
[352698224,1739250645589,-3895.3,0.00011087,2]
[352698225,1739250645599,-500.0,0.00011087,2]
[352698226,1739250645608,-1321.37,0.00011087,2]
[352698227,1739250645618,-504.84537178,0.00011087,2]
[352698228,1739250645627,-500.0,0.00011087,2]
[352698229,1739250645638,-501.48651178,0.00011087,2]
[352698230,1739250645648,-500.0,0.00011087,2]
[352698231,1739250645657,-500.0,0.00011087,2]
[352698233,1739250645667,-500.0,0.00011087,2]
[352698234,1739250645676,-500.0,0.00011087,2]
[352698235,1739250645685,-500.0,0.00011087,2]
[352698236,1739250645696,-500.0,0.00011087,2]
[352698237,1739250645705,-501.7740796,0.00011087,2]
[352698238,1739250645714,-1706.81,0.00011087,2]
[352698239,1739250645724,-500.0,0.00011087,2]
[352698240,1739250645734,-500.0,0.00011087,2]
[352698241,1739250645743,-500.0,0.00011087,2]
[352698242,1739250645752,-500.0,0.00011087,2]
[352698243,1739250645762,-500.0,0.00011087,2]
[352698244,1739250645771,-589.67,0.00011087,2]
[352698245,1739250645780,-490.68239705,0.00011087,2]
[352698246,1739250645790,-3539.03,0.00011087,2]
[352698247,1739250645799,-852.21,0.00011087,2]
[352698248,1739250645813,-2494.75,0.00011087,2]
[352698249,1739250645822,-3064.21,0.00011087,2]
[352698251,1739250645832,-508.04805733,0.00011087,2]
[352698252,1739250645841,-500.0,0.00011087,2]
[352698254,1739250645851,-500.0,0.00011087,2]
[352698255,1739250645860,-2557.35,0.00011087,2]
[352698256,1739250645870,-500.0,0.00011087,2]
[352698257,1739250645880,-371.62075096,0.00011087,2]
[352698259,1739250645890,-500.0,0.00011087,2]
[352698260,1739250645900,-481.51561025,0.00011087,2]
[352698261,1739250645909,-1123.55,0.00011087,2]
[352698262,1739250645919,-598.96,0.00011087,2]
[352698263,1739250645928,-500.0,0.00011087,2]
[352698264,1739250645938,-500.0,0.00011087,2]
[352698265,1739250645947,-500.0,0.00011087,2]
[352698266,1739250645957,-493.89,0.00011088,2]
[352698267,1739250645966,-500.0,0.00011088,2]
[352698268,1739250645975,-500.0,0.00011088,2]
[352698269,1739250645985,-319.12874135,0.00011088,2]
[352698270,1739250645994,-212.16998103,0.00011088,2]
[352698272,1739250646004,-500.0,0.00011088,2]
[352698274,1739250646013,-500.0,0.00011088,2]
[352698275,1739250646022,-510.34624998,0.00011088,2]
[352698276,1739250646031,-500.0,0.00011088,2]
[352698277,1739250646041,-500.0,0.00011088,2]
[352698278,1739250646051,-500.0,0.00011088,2]
[352698279,1739250646062,-179.49748101,0.00011088,2]
[352698280,1739250646071,-500.0,0.00011088,2]
[352698281,1739250646080,-500.0,0.00011088,2]
[352698282,1739250646090,-500.25891968,0.00011088,2]
[352698283,1739250646099,-500.0,0.00011088,2]
[352698284,1739250646109,-500.0,0.00011088,2]
[352698285,1739250646118,-500.0,0.00011088,2]
[352698286,1739250646128,-500.0,0.00011088,2]
[352698287,1739250646137,-500.0,0.00011088,2]
[352698288,1739250646146,-500.0,0.00011088,2]
[352698289,1739250646155,-231.96179708,0.00011088,2]
[352698290,1739250646165,-500.0,0.00011088,2]
[352698291,1739250646174,-500.0,0.00011088,2]
[352698292,1739250646184,-500.0,0.00011088,2]
[352698293,1739250646193,-500.0,0.00011088,2]
[352698294,1739250646202,-500.0,0.00011088,2]
[352698295,1739250646211,-500.0,0.00011088,2]
[352698296,1739250646220,-585.9,0.00011088,2]
[352698297,1739250646230,-500.0,0.00011088,2]
[352698298,1739250646239,-500.0,0.00011088,2]
[352698299,1739250646248,-500.0,0.00011088,2]
[352698300,1739250646257,-500.0,0.00011088,2]
[352698301,1739250646267,-500.0,0.00011088,2]
[352698302,1739250646276,-500.0,0.00011088,2]
[352698303,1739250646285,-500.0,0.00011088,2]
[352698304,1739250646295,-500.0,0.00011088,2]
[352698305,1739250646306,-500.0,0.00011088,2]
[352698306,1739250646315,-500.0,0.00011088,2]
[352698307,1739250646325,-500.0,0.00011088,2]
[352698308,1739250646334,-500.0,0.00011088,2]
[352698309,1739250646344,-500.0,0.00011088,2]
[352698310,1739250646354,-500.0,0.00011088,2]
[352698311,1739250646363,-500.0,0.00011088,2]
[352698312,1739250646373,-500.0,0.00011088,2]
[352698313,1739250646384,-500.0,0.00011088,2]
[352698314,1739250646393,-500.0,0.00011088,2]
[352698315,1739250646403,-500.0,0.00011088,2]
[352698316,1739250646413,-500.0,0.00011088,2]
[352698317,1739250646422,-502.2019396,0.00011088,2]
[352698318,1739250646431,-501.04560534,0.00011088,2]
[352698319,1739250646441,-500.0,0.00011088,2]
[352698320,1739250646450,-500.0,0.00011088,2]
[352698321,1739250646459,-501.14658812,0.00011088,2]
[352698322,1739250646469,-500.0,0.00011088,2]
[352698323,1739250646479,-500.0,0.00011088,2]
[352698324,1739250646488,-500.0,0.00011088,2]
[352698325,1739250646498,-500.0,0.00011088,2]
[352698326,1739250646507,-500.0,0.00011088,2]
[352698327,1739250646517,-500.0,0.00011088,2]
[352698328,1739250646526,-500.0,0.00011088,2]
[352698330,1739250646536,-500.0,0.00011088,2]
[352698332,1739250646546,-500.44296779,0.00011088,2]
[352698334,1739250646557,-500.0,0.00011088,2]
[352698336,1739250646566,-500.0,0.00011088,2]
[352698338,1739250646577,-500.0,0.00011088,2]
[352698340,1739250646586,-527.8398877,0.00011088,2]
[352698342,1739250646596,-508.05250245,0.00011088,2]
[352698344,1739250646606,-1091.53,0.00011088,2]
[352698346,1739250646616,-920.75,0.00011088,2]
[352698348,1739250646626,-749.18,0.00011088,2]
[352698350,1739250646636,-538.05218647,0.00011088,2]
[352698352,1739250646646,-742.75,0.00011088,2]
[352698354,1739250646657,-1372.19,0.00011088,2]
[352698356,1739250646666,-500.0,0.00011088,2]
[352698358,1739250646675,-1086.38,0.00011088,2]
[352698360,1739250646685,-331.287757,0.00011088,2]
[352698362,1739250646695,-850.38,0.00011088,2]
[352698364,1739250646704,-500.0,0.00011088,2]
[352698366,1739250646714,-500.0,0.00011088,2]
[352698368,1739250646724,-500.0,0.00011088,2]
[352698370,1739250646733,-668.29,0.00011088,2]
[352698372,1739250646743,-500.0,0.00011088,2]
[352698374,1739250646753,-500.0,0.00011088,2]
[352698376,1739250646763,-500.0,0.00011088,2]
[352698378,1739250646773,-500.0,0.00011088,2]
[352698380,1739250646782,-500.0,0.00011088,2]
[352698382,1739250646792,-500.0,0.00011088,2]
[352698384,1739250646801,-500.0,0.00011088,2]
[352698386,1739250646815,-500.0,0.00011088,2]
[352698388,1739250646825,-922.56,0.00011088,2]
[352698390,1739250646835,-500.0,0.00011088,2]
[352698392,1739250646845,-500.0,0.00011088,2]
[352698394,1739250646854,-500.0,0.00011088,2]
[352698396,1739250646863,-791.04,0.00011088,2]
[352698398,1739250646873,-500.0,0.00011088,2]
[352698400,1739250646883,-513.34,0.00011088,2]
[352698402,1739250646892,-739.51,0.00011088,2]
[352698404,1739250646901,-500.0,0.00011088,2]
[352698406,1739250646911,-819.25,0.00011088,2]
[352698408,1739250646921,-500.0,0.00011088,2]
[352698410,1739250646930,-500.0,0.00011088,2]
[352698412,1739250646940,-500.0,0.00011088,2]
[352698414,1739250646949,-500.0,0.00011088,2]
[352698416,1739250646958,-500.0,0.00011088,2]
[352698418,1739250646967,-500.0,0.00011088,2]
[352698420,1739250646976,-647.0,0.00011088,2]
[352698422,1739250646985,-500.0,0.00011088,2]
[352698424,1739250646994,-500.0,0.00011088,2]
[352698426,1739250647004,-503.22,0.00011088,2]
[352698428,1739250647013,-500.0,0.00011088,2]
[352698430,1739250647022,-548.71,0.00011088,2]
[352698432,1739250647032,-151.0,0.00011088,2]
[352698433,1739250647042,-500.0,0.00011088,2]
[352698435,1739250647051,-500.0,0.00011088,2]
[352698438,1739250647062,-500.0,0.00011088,2]
[352698439,1739250647071,-850.19,0.00011088,2]
[352698441,1739250647080,-2211.69,0.00011088,2]
[352698444,1739250647090,-500.0,0.00011088,2]
[352698445,1739250647099,-500.0,0.00011088,2]
[352698448,1739250647109,-500.0,0.00011088,2]
[352698450,1739250647118,-541.05,0.00011088,2]
[352698451,1739250647127,-3380.37,0.00011088,2]
[352698453,1739250647137,-500.0,0.00011088,2]
[352698455,1739250647146,-3326.51,0.00011088,2]
[352698457,1739250647155,-1364.94,0.00011088,2]
[352698459,1739250647164,-500.0,0.00011088,2]
[352698461,1739250647174,-500.0,0.00011088,2]
[352698463,1739250647183,-1496.14,0.00011088,2]
[352698465,1739250647192,-1648.31,0.00011088,2]
[352698467,1739250647202,-500.0,0.00011088,2]
[352698469,1739250647211,-500.0,0.00011088,2]
[352698471,1739250647220,-1727.1,0.00011088,2]
[352698473,1739250647229,-1482.45,0.00011088,2]
[352698475,1739250647238,-877.76,0.00011088,2]
[352698477,1739250647247,-754.61,0.00011088,2]
[352698479,1739250647256,-2012.41,0.00011088,2]
[352698481,1739250647266,-653.12,0.00011088,2]
[352698483,1739250647275,-1000.0,0.00011088,2]
[352698485,1739250647285,-500.0,0.00011088,2]
[352698487,1739250647294,-1224.26,0.00011088,2]
[352698489,1739250647305,-3364.19,0.00011088,2]
[352698491,1739250647314,-500.0,0.00011088,2]
[352698493,1739250647323,-919.56,0.00011088,2]
[352698495,1739250647332,-1342.61,0.00011088,2]
[352698497,1739250647342,-1696.91,0.00011088,2]
[352698499,1739250647351,-1058.19,0.00011088,2]
[352698501,1739250647361,-529.0,0.00011088,2]
[352698503,1739250647371,-1726.12,0.00011088,2]
[352698505,1739250647380,-2047.09,0.00011088,2]
[352698507,1739250647390,-500.0,0.00011088,2]
[352698509,1739250647400,-846.67,0.00011088,2]
[352698511,1739250647409,-500.0,0.00011088,2]
[352698513,1739250647418,-2250.97,0.00011088,2]
[352698515,1739250647428,-500.0,0.00011088,2]
[352698517,1739250647438,-1924.38,0.00011088,2]
[352698519,1739250647449,-500.0,0.00011088,2]
[352698521,1739250647459,-2178.46,0.00011088,2]
[352698523,1739250647469,-500.0,0.00011088,2]
[352698525,1739250647479,-1343.29,0.00011088,2]
[352698527,1739250647489,-2325.4,0.00011088,2]
[352698529,1739250647498,-500.0,0.00011088,2]
[352698531,1739250647508,-4154.14,0.00011088,2]
[352698533,1739250647519,-6719.92,0.00011088,2]
[352698535,1739250647528,-1045.71,0.00011088,2]
[352698537,1739250647539,-500.0,0.00011088,2]
[352698539,1739250647549,-1866.62,0.00011088,2]
[352698541,1739250647560,-500.0,0.00011088,2]
[352698543,1739250647569,-1745.72,0.00011088,2]
[352698545,1739250647579,-914.24,0.00011088,2]
[352698547,1739250647588,-827.83,0.00011088,2]
[352698549,1739250647598,-500.0,0.00011088,2]
[352698551,1739250647607,-577.54,0.00011088,2]
[352698553,1739250647616,-505.69575925,0.00011089,2]
[352698555,1739250647626,-500.0,0.00011089,2]
[352698557,1739250647636,-960.38,0.00011089,2]
[352698559,1739250647647,-976.95,0.00011089,2]
[352698561,1739250647656,-500.0,0.00011089,2]
[352698562,1739250647666,-1093.76,0.00011089,2]
[352698565,1739250647676,-761.93,0.00011089,2]
[352698566,1739250647686,-500.0,0.00011089,2]
[352698569,1739250647696,-1252.08,0.00011089,2]
[352698570,1739250647705,-502.05,0.00011089,2]
[352698573,1739250647715,-1297.81,0.00011089,2]
[352698574,1739250647727,-1338.1,0.00011089,2]
[352698576,1739250647737,-500.0,0.00011089,2]
[352698579,1739250647747,-500.0,0.00011089,2]
[352698580,1739250647757,-909.41,0.00011089,2]
[352698583,1739250647766,-500.0,0.00011089,2]
[352698585,1739250647776,-500.0,0.00011089,2]
[352698587,1739250647786,-500.0,0.00011089,2]
[352698589,1739250647797,-500.0,0.00011089,2]
[352698591,1739250647808,-2305.92,0.00011095,2]
[352698593,1739250647818,-912.093638,0.00011095,2]
[352698595,1739250647827,-1518.4,0.00011095,2]
[352698597,1739250647837,-1321.43,0.00011095,2]
[352698599,1739250647846,-1026.73,0.00011095,2]
[352698601,1739250647856,-1838.06,0.00011095,2]
[352698603,1739250647865,-520.4,0.00011095,2]
[352698605,1739250647875,-994.35,0.00011095,2]
[352698607,1739250647884,-855.97882,0.00011095,2]
[352698609,1739250647894,-1940.58,0.00011095,2]
[352698611,1739250647904,-1535.32,0.00011095,2]
[352698613,1739250647913,-1212.29,0.00011095,2]
[352698614,1739250647922,-664.32,0.00011095,2]
[352698616,1739250647932,-500.0,0.00011095,2]
[352698618,1739250647942,-1142.24,0.00011095,2]
[352698621,1739250647952,-613.57,0.00011095,2]
[352698622,1739250647960,-1415.44,0.00011095,2]
[352698625,1739250647970,-2337.57,0.00011095,2]
[352698627,1739250647980,-2581.03,0.00011095,2]
[352698629,1739250647989,-2314.39,0.00011095,2]
[352698631,1739250647999,-784.45,0.00011095,2]
[352698633,1739250648008,-2326.26,0.00011095,2]
[352698634,1739250648018,-1666.57,0.00011095,2]
[352698636,1739250648028,-2137.62,0.00011095,2]
[352698638,1739250648038,-817.64,0.00011095,2]
[352698641,1739250648049,-2910.21,0.00011095,2]
[352698642,1739250648060,-1673.73,0.00011095,2]
[352698645,1739250648071,-2252.75,0.00011095,2]
[352698646,1739250648081,-2037.2,0.00011095,2]
[352698648,1739250648090,-1423.58,0.00011095,2]
[352698651,1739250648100,-3288.35,0.00011095,2]
[352698653,1739250648110,-6743.59,0.00011095,2]
[352698654,1739250648120,-1685.93,0.00011095,2]
[352698656,1739250648130,-2259.46,0.00011095,2]
[352698659,1739250648139,-2672.27,0.00011095,2]
[352698660,1739250648149,-2966.77,0.00011095,2]
[352698663,1739250648159,-1318.65,0.00011095,2]
[352698664,1739250648169,-2716.9,0.00011095,2]
[352698667,1739250648179,-1540.01,0.00011095,2]
[352698669,1739250648189,-4869.53,0.00011095,2]
[352698670,1739250648199,-3646.89,0.00011095,2]
[352698673,1739250648210,-978.58,0.00011095,2]
[352698675,1739250648219,-1074.13,0.00011095,2]
[352698677,1739250648229,-2364.94,0.00011095,2]
[352698678,1739250648239,-1399.13,0.00011095,2]
[352698680,1739250648247,-724.27,0.00011095,2]
[352698682,1739250648257,-544.88,0.00011095,2]
[352698684,1739250648267,-535.72,0.00011095,2]
[352698686,1739250648276,-2035.19,0.00011095,2]
[352698688,1739250648286,-2908.54,0.00011095,2]
[352698690,1739250648296,-500.0,0.00011095,2]
[352698692,1739250648307,-1488.4,0.00011095,2]
[352698694,1739250648317,-2749.95,0.00011095,2]
[352698696,1739250648326,-500.0,0.00011095,2]
[352698698,1739250648336,-953.06,0.00011095,2]
[352698699,1739250648345,-4031.84957841,0.00011099,2]
[352698700,1739250648355,-4031.84957834,0.00011099,2]
[352698701,1739250648364,-4031.84957834,0.00011099,2]
[352698702,1739250648374,-4031.84957834,0.00011099,2]
[352698703,1739250648384,-4031.84957834,0.00011099,2]
[352698704,1739250648394,-4211.05181868,0.00011099,2]
[352698706,1739250648404,-4211.05181863,0.00011099,2]
[352698708,1739250648414,-4211.05181863,0.00011099,2]
[352698710,1739250648424,-4211.05181863,0.00011099,2]
[352698712,1739250648434,-4211.05181863,0.00011099,2]
[352698714,1739250648444,-4211.05181863,0.00011099,2]
[352698716,1739250648455,-4211.05181863,0.00011099,2]